fUSD/lending_fUSD_20260529
["ID","MTS","AMOUNT","RATE_DAILY","PERIOD"]
[423285454,1780026648000,-1130.15077884,0.00025818,5]
[423285438,1780026648000,-150.0,0.00025342,2]
[423285467,1780026648000,-2657.95098133,0.00026027,2]
[423285414,1780026648000,-392.02,0.00025,2]
[423285428,1780026648000,-151.0,0.00025082,2]
[423285419,1780026648000,-392.02,0.00025,2]
[423285430,1780026648000,-2939.18,0.000251,7]
[423285429,1780026648000,-948.0,0.00025082,2]
[423285420,1780026648000,-392.02,0.00025,2]
[423285425,1780026648000,-151.613884,0.00025082,2]
[423285422,1780026648000,-392.02,0.00025,2]
[423285421,1780026648000,-392.02,0.00025,2]
[423285423,1780026648000,-202.42271589,0.00025082,2]
[423285424,1780026648000,-151.613884,0.00025082,2]
[423285426,1780026648000,-151.613884,0.00025082,2]
[423285427,1780026648000,-151.613884,0.00025082,2]
[423285440,1780026648000,-978.8,0.0002537,5]
[423285432,1780026648000,-184.24125496,0.00025138,2]
[423285441,1780026648000,-233.5188934,0.00025521,2]
[423285437,1780026648000,-152.0,0.00025296,12]
[423285435,1780026648000,-7311.35574768,0.00025208,2]
[423285439,1780026648000,-10488.45,0.00025342,7]
[423285436,1780026648000,-310.10169684,0.00025208,2]
[423285434,1780026648000,-331.31308937,0.00025208,2]
[423285431,1780026648000,-568.53506614,0.00025115,2]
[423285433,1780026648000,-200.0,0.00025178,2]
[423285505,1780026649000,-4840.0,0.000267,7]
[423285494,1780026649000,-3141.402971,0.00026384,2]
[423285495,1780026649000,-3141.402971,0.00026384,2]
[423285498,1780026649000,-152.0,0.00026449,14]
[423285497,1780026649000,-2939.18,0.000264,7]
[423285493,1780026649000,-3141.402971,0.00026384,2]
[423285503,1780026649000,-2054.15682156,0.00026617,2]
[423285502,1780026649000,-200.0,0.00026617,2]
[423285504,1780026649000,-2991.49051684,0.00026617,2]
[423285513,1780026649000,-500.0,0.00026727,7]
[423285506,1780026649000,-2657.95098133,0.00026712,2]
[423285507,1780026649000,-500.0,0.00026727,7]
[423285518,1780026649000,-500.0,0.00026727,7]
[423285511,1780026649000,-500.0,0.00026727,7]
[423285512,1780026649000,-500.0,0.00026727,7]
[423285510,1780026649000,-500.0,0.00026727,7]
[423285508,1780026649000,-500.0,0.00026727,7]
[423285515,1780026649000,-500.0,0.00026727,7]
[423285520,1780026649000,-500.0,0.00026727,7]
[423285514,1780026649000,-500.0,0.00026727,7]
[423285517,1780026649000,-500.0,0.00026727,7]
[423285521,1780026649000,-500.0,0.00026727,7]
[423285519,1780026649000,-500.0,0.00026727,7]
[423285516,1780026649000,-500.0,0.00026727,7]
[423285496,1780026649000,-264.1191416,0.00026397,2]
[423285509,1780026649000,-500.0,0.00026727,7]
[423285492,1780026649000,-3141.402971,0.00026384,2]
[423285476,1780026649000,-3000.0,0.00026083,7]
[423285501,1780026649000,-251.11897888,0.00026617,2]
[423285475,1780026649000,-2884.75459676,0.00026069,2]
[423285474,1780026649000,-1980.8648231,0.00026069,2]
[423285522,1780026649000,-500.0,0.00026727,7]
[423285470,1780026649000,-174.72474418,0.00026028,2]
[423285471,1780026649000,-500.0,0.00026028,7]
[423285473,1780026649000,-200.0,0.00026069,2]
[423285469,1780026649000,-176.86,0.00026027,7]
[423285468,1780026649000,-199.7,0.00026027,7]
[423285472,1780026649000,-242.15909246,0.00026069,2]
[423285477,1780026649000,-1911.0,0.000261,2]
[423285481,1780026649000,-223.63260418,0.00026191,2]
[423285488,1780026649000,-613048.28475043,0.00026341,2]
[423285480,1780026649000,-448.2,0.00026138,15]
[423285489,1780026649000,-1586.82087,0.00026341,2]
[423285479,1780026649000,-286.0,0.000261,2]
[423285478,1780026649000,-311.0,0.000261,2]
[423285487,1780026649000,-500.0,0.00026322,2]
[423285486,1780026649000,-8056.7,0.00026296,2]
[423285482,1780026649000,-163.0041627,0.00026191,2]
[423285485,1780026649000,-177.744918,0.00026278,7]
[423285483,1780026649000,-948.0,0.00026192,3]
[423285484,1780026649000,-500.0,0.00026234,2]
[423285500,1780026649000,-775.4783256,0.00026615,2]
[423285491,1780026649000,-1739.85,0.00026373,7]
[423285499,1780026649000,-621.78829552,0.00026615,2]
[423285490,1780026649000,-721.55,0.00026373,7]
[423285524,1780026649000,-500.0,0.00026727,7]
[423285523,1780026649000,-500.0,0.00026727,7]
[423285536,1780026649000,-500.0,0.00026727,7]
[423285556,1780026649000,-500.0,0.00026727,7]
[423285558,1780026649000,-500.0,0.00026727,7]
[423285559,1780026649000,-500.0,0.00026727,7]
[423285561,1780026649000,-500.0,0.00026727,7]
[423285560,1780026649000,-500.0,0.00026727,7]
[423285564,1780026649000,-500.0,0.00026727,7]
[423285565,1780026649000,-500.0,0.00026727,7]
[423285562,1780026649000,-500.0,0.00026727,7]
[423285563,1780026649000,-500.0,0.00026727,7]
[423285569,1780026649000,-500.0,0.00026727,7]
[423285570,1780026649000,-500.0,0.00026727,7]
[423285567,1780026649000,-500.0,0.00026727,7]
[423285550,1780026649000,-500.0,0.00026727,7]
[423285568,1780026649000,-500.0,0.00026727,7]
[423285571,1780026649000,-500.0,0.00026727,7]
[423285575,1780026649000,-500.0,0.00026727,7]
[423285574,1780026649000,-500.0,0.00026727,7]
[423285573,1780026649000,-500.0,0.00026727,7]
[423285576,1780026649000,-500.0,0.00026727,7]
[423285579,1780026649000,-500.0,0.00026727,7]
[423285581,1780026649000,-500.0,0.00026727,7]
[423285577,1780026649000,-500.0,0.00026727,7]
[423285580,1780026649000,-500.0,0.00026727,7]
[423285572,1780026649000,-500.0,0.00026727,7]
[423285525,1780026649000,-500.0,0.00026727,7]
[423285582,1780026649000,-500.0,0.00026727,7]
[423285566,1780026649000,-500.0,0.00026727,7]
[423285557,1780026649000,-500.0,0.00026727,7]
[423285578,1780026649000,-500.0,0.00026727,7]
[423285553,1780026649000,-500.0,0.00026727,7]
[423285527,1780026649000,-500.0,0.00026727,7]
[423285530,1780026649000,-500.0,0.00026727,7]
[423285529,1780026649000,-500.0,0.00026727,7]
[423285528,1780026649000,-500.0,0.00026727,7]
[423285526,1780026649000,-500.0,0.00026727,7]
[423285532,1780026649000,-500.0,0.00026727,7]
[423285535,1780026649000,-500.0,0.00026727,7]
[423285549,1780026649000,-500.0,0.00026727,7]
[423285531,1780026649000,-500.0,0.00026727,7]
[423285534,1780026649000,-500.0,0.00026727,7]
[423285548,1780026649000,-500.0,0.00026727,7]
[423285538,1780026649000,-500.0,0.00026727,7]
[423285537,1780026649000,-500.0,0.00026727,7]
[423285533,1780026649000,-500.0,0.00026727,7]
[423285539,1780026649000,-509.37,0.00026727,7]
[423285552,1780026649000,-500.0,0.00026727,7]
[423285540,1780026649000,-500.0,0.00026727,7]
[423285555,1780026649000,-500.0,0.00026727,7]
[423285554,1780026649000,-500.0,0.00026727,7]
[423285547,1780026649000,-500.0,0.00026727,7]
[423285551,1780026649000,-500.0,0.00026727,7]
[423285546,1780026649000,-500.0,0.00026727,7]
[423285543,1780026649000,-500.0,0.00026727,7]
[423285544,1780026649000,-500.0,0.00026727,7]
[423285542,1780026649000,-500.0,0.00026727,7]
[423285541,1780026649000,-500.0,0.00026727,7]
[423285545,1780026649000,-500.0,0.00026727,7]
[423285619,1780026650000,-500.0,0.00026727,7]
[423285620,1780026650000,-500.0,0.00026727,7]
[423285622,1780026650000,-500.0,0.00026727,7]
[423285615,1780026650000,-500.0,0.00026727,7]
[423285613,1780026650000,-500.0,0.00026727,7]
[423285624,1780026650000,-500.0,0.00026727,7]
[423285618,1780026650000,-500.0,0.00026727,7]
[423285616,1780026650000,-500.0,0.00026727,7]
[423285614,1780026650000,-500.0,0.00026727,7]
[423285617,1780026650000,-500.0,0.00026727,7]
[423285621,1780026650000,-500.0,0.00026727,7]
[423285638,1780026650000,-500.0,0.00026727,7]
[423285626,1780026650000,-500.0,0.00026727,7]
[423285625,1780026650000,-500.0,0.00026727,7]
[423285636,1780026650000,-500.0,0.00026727,7]
[423285627,1780026650000,-500.0,0.00026727,7]
[423285629,1780026650000,-500.0,0.00026727,7]
[423285628,1780026650000,-500.0,0.00026727,7]
[423285630,1780026650000,-500.0,0.00026727,7]
[423285631,1780026650000,-500.0,0.00026727,7]
[423285635,1780026650000,-500.0,0.00026727,7]
[423285634,1780026650000,-500.0,0.00026727,7]
[423285632,1780026650000,-500.0,0.00026727,7]
[423285611,1780026650000,-500.0,0.00026727,7]
[423285623,1780026650000,-500.0,0.00026727,7]
[423285607,1780026650000,-500.0,0.00026727,7]
[423285596,1780026650000,-500.0,0.00026727,7]
[423285608,1780026650000,-500.0,0.00026727,7]
[423285637,1780026650000,-500.0,0.00026727,7]
[423285583,1780026650000,-500.0,0.00026727,7]
[423285585,1780026650000,-500.0,0.00026727,7]
[423285584,1780026650000,-500.0,0.00026727,7]
[423285591,1780026650000,-500.0,0.00026727,7]
[423285589,1780026650000,-500.0,0.00026727,7]
[423285590,1780026650000,-500.0,0.00026727,7]
[423285587,1780026650000,-516.58,0.00026727,7]
[423285586,1780026650000,-500.0,0.00026727,7]
[423285588,1780026650000,-500.0,0.00026727,7]
[423285592,1780026650000,-500.0,0.00026727,7]
[423285594,1780026650000,-500.0,0.00026727,7]
[423285606,1780026650000,-500.0,0.00026727,7]
[423285593,1780026650000,-500.0,0.00026727,7]
[423285597,1780026650000,-500.0,0.00026727,7]
[423285595,1780026650000,-500.0,0.00026727,7]
[423285601,1780026650000,-500.0,0.00026727,7]
[423285600,1780026650000,-500.0,0.00026727,7]
[423285599,1780026650000,-631.24,0.00026727,7]
[423285603,1780026650000,-500.0,0.00026727,7]
[423285602,1780026650000,-500.0,0.00026727,7]
[423285605,1780026650000,-500.0,0.00026727,7]
[423285604,1780026650000,-500.0,0.00026727,7]
[423285609,1780026650000,-500.0,0.00026727,7]
[423285612,1780026650000,-500.0,0.00026727,7]
[423285610,1780026650000,-500.0,0.00026727,7]
[423285598,1780026650000,-500.0,0.00026727,7]
[423285648,1780026650000,-158.692123,0.00026727,2]
[423285633,1780026650000,-500.0,0.00026727,7]
[423285639,1780026650000,-500.0,0.00026727,7]
[423285672,1780026650000,-10488.45,0.00027122,7]
[423285676,1780026650000,-2000.0,0.000272,5]
[423285674,1780026650000,-3000.0,0.00027179,7]
[423285682,1780026650000,-948.0,0.00027301,4]
[423285675,1780026650000,-193.11962521,0.00027182,2]
[423285683,1780026650000,-151.0,0.0002733,2]
[423285673,1780026650000,-260.4103811,0.00027165,2]
[423285679,1780026650000,-500.0,0.00027209,14]
[423285681,1780026650000,-429.67183004,0.000273,30]
[423285680,1780026650000,-429.67183006,0.000273,30]
[423285678,1780026650000,-2000.0,0.000272,7]
[423285685,1780026650000,-151.0,0.0002733,2]
[423285684,1780026650000,-171.300144,0.0002733,2]
[423285695,1780026650000,-667.030463,0.0002733,2]
[423285696,1780026650000,-667.030463,0.0002733,2]
[423285686,1780026650000,-151.0,0.0002733,2]
[423285694,1780026650000,-667.030463,0.0002733,2]
[423285689,1780026650000,-193.34322,0.0002733,2]
[423285688,1780026650000,-151.0,0.0002733,2]
[423285690,1780026650000,-193.34322,0.0002733,2]
[423285691,1780026650000,-193.34322,0.0002733,2]
[423285687,1780026650000,-151.0,0.0002733,2]
[423285693,1780026650000,-667.030463,0.0002733,2]
[423285692,1780026650000,-193.34322,0.0002733,2]
[423285640,1780026650000,-371.99,0.00026727,7]
[423285671,1780026650000,-500.0,0.00027112,2]
[423285670,1780026650000,-152.0,0.00027026,15]
[423285677,1780026650000,-2000.0,0.000272,6]
[423285669,1780026650000,-2585.072722,0.0002701,2]
[423285641,1780026650000,-500.0,0.00026727,7]
[423285665,1780026650000,-2000.0,0.00027,2]
[423285642,1780026650000,-500.0,0.00026727,7]
[423285645,1780026650000,-151.0,0.00026727,2]
[423285644,1780026650000,-151.0,0.00026727,2]
[423285643,1780026650000,-500.0,0.00026727,7]
[423285646,1780026650000,-151.0,0.00026727,2]
[423285647,1780026650000,-151.0,0.00026727,2]
[423285659,1780026650000,-7426.32409387,0.00026895,2]
[423285657,1780026650000,-2000.0,0.000268,3]
[423285658,1780026650000,-2000.0,0.000268,4]
[423285653,1780026650000,-183.66596018,0.00026746,2]
[423285652,1780026650000,-1071.12,0.00026736,2]
[423285651,1780026650000,-158.692123,0.00026727,2]
[423285667,1780026650000,-2000.0,0.00027,2]
[423285664,1780026650000,-219.829601,0.00027,2]
[423285654,1780026650000,-948.0,0.00026746,3]
[423285668,1780026650000,-173.0,0.00027,7]
[423285666,1780026650000,-1018.67,0.00027,2]
[423285660,1780026650000,-486.75,0.00026951,2]
[423285663,1780026650000,-2000.0,0.00027,14]
[423285662,1780026650000,-960.36867786,0.00027,5]
[423285655,1780026650000,-200.0,0.00026761,2]
[423285656,1780026650000,-2000.0,0.000268,2]
[423285649,1780026650000,-158.692123,0.00026727,2]
[423285650,1780026650000,-158.692123,0.00026727,2]
[423285661,1780026650000,-182.27,0.00026983,2]
[423285733,1780026651000,-928.0,0.00027384,2]
[423285736,1780026651000,-525.0,0.00027384,2]
[423285735,1780026651000,-1225.0,0.00027384,2]
[423285742,1780026651000,-188.26421614,0.00027397,7]
[423285743,1780026651000,-151.72204684,0.00027397,30]
[423285724,1780026651000,-301.087025,0.00027384,2]
[423285726,1780026651000,-151.0,0.00027384,2]
[423285725,1780026651000,-301.087025,0.00027384,2]
[423285727,1780026651000,-3141.402971,0.00027384,2]
[423285729,1780026651000,-3141.402971,0.00027384,2]
[423285738,1780026651000,-6066.0,0.00027384,2]
[423285734,1780026651000,-1272.0,0.00027384,2]
[423285737,1780026651000,-932.0,0.00027384,2]
[423285748,1780026651000,-500.0,0.00027397,2]
[423285741,1780026651000,-468.98024062,0.00027397,30]
[423285739,1780026651000,-237.3695657,0.00027397,7]
[423285745,1780026651000,-500.0,0.00027397,2]
[423285746,1780026651000,-500.0,0.00027397,2]
[423285750,1780026651000,-500.0,0.00027397,2]
[423285754,1780026651000,-500.0,0.00027397,2]
[423285747,1780026651000,-500.0,0.00027397,2]
[423285753,1780026651000,-500.0,0.00027397,2]
[423285752,1780026651000,-500.0,0.00027397,2]
[423285751,1780026651000,-500.0,0.00027397,2]
[423285749,1780026651000,-500.0,0.00027397,2]
[423285720,1780026651000,-4101.394339,0.00027384,2]
[423285740,1780026651000,-425.33857285,0.00027397,2]
[423285723,1780026651000,-301.087025,0.00027384,2]
[423285699,1780026651000,-1775.187622,0.0002733,2]
[423285722,1780026651000,-301.087025,0.00027384,2]
[423285697,1780026651000,-1775.187622,0.0002733,2]
[423285706,1780026651000,-1354.19404032,0.00027348,4]
[423285698,1780026651000,-1775.187622,0.0002733,2]
[423285700,1780026651000,-1775.187622,0.0002733,2]
[423285701,1780026651000,-210.674048,0.0002733,2]
[423285707,1780026651000,-674.088751,0.00027384,2]
[423285703,1780026651000,-210.674048,0.0002733,2]
[423285705,1780026651000,-227.81312426,0.00027346,2]
[423285702,1780026651000,-210.674048,0.0002733,2]
[423285708,1780026651000,-674.088751,0.00027384,2]
[423285704,1780026651000,-210.674048,0.0002733,2]
[423285718,1780026651000,-4101.394339,0.00027384,2]
[423285730,1780026651000,-3141.402971,0.00027384,2]
[423285711,1780026651000,-1906.742747,0.00027384,2]
[423285719,1780026651000,-4101.394339,0.00027384,2]
[423285712,1780026651000,-1906.742747,0.00027384,2]
[423285709,1780026651000,-674.088751,0.00027384,2]
[423285713,1780026651000,-1906.742747,0.00027384,2]
[423285716,1780026651000,-151.0,0.00027384,2]
[423285714,1780026651000,-1906.742747,0.00027384,2]
[423285717,1780026651000,-151.0,0.00027384,2]
[423285715,1780026651000,-151.0,0.00027384,2]
[423285721,1780026651000,-4101.394339,0.00027384,2]
[423285731,1780026651000,-3141.402971,0.00027384,2]
[423285732,1780026651000,-3549.0,0.00027384,2]
[423285728,1780026651000,-151.0,0.00027384,2]
[423285710,1780026651000,-674.088751,0.00027384,2]
[423285744,1780026651000,-500.0,0.00027397,2]
[423285757,1780026651000,-500.0,0.00027397,2]
[423285767,1780026651000,-1500.0,0.00027397,2]
[423285788,1780026651000,-151.0,0.00027397,2]
[423285789,1780026651000,-1154.137718,0.00027397,2]
[423285790,1780026651000,-1154.137718,0.00027397,2]
[423285791,1780026651000,-151.0,0.00027397,2]
[423285793,1780026651000,-1154.137718,0.00027397,2]
[423285795,1780026651000,-1154.137718,0.00027397,2]
[423285796,1780026651000,-1154.137718,0.00027397,2]
[423285797,1780026651000,-4419.815268,0.00027397,2]
[423285798,1780026651000,-4419.815268,0.00027397,2]
[423285794,1780026651000,-1154.137718,0.00027397,2]
[423285804,1780026651000,-4419.815268,0.00027397,2]
[423285800,1780026651000,-4419.815268,0.00027397,2]
[423285785,1780026651000,-1154.137718,0.00027397,2]
[423285803,1780026651000,-4419.815268,0.00027397,2]
[423285799,1780026651000,-4419.815268,0.00027397,2]
[423285802,1780026651000,-4419.815268,0.00027397,2]
[423285806,1780026651000,-1298.758075,0.00027397,2]
[423285808,1780026651000,-1298.758075,0.00027397,2]
[423285805,1780026651000,-1298.758075,0.00027397,2]
[423285809,1780026651000,-1298.758075,0.00027397,2]
[423285807,1780026651000,-1298.758075,0.00027397,2]
[423285813,1780026651000,-1348.007108,0.00027397,2]
[423285810,1780026651000,-1298.758075,0.00027397,2]
[423285756,1780026651000,-500.0,0.00027397,2]
[423285814,1780026651000,-1348.007108,0.00027397,2]
[423285812,1780026651000,-1298.758075,0.00027397,2]
[423285801,1780026651000,-4419.815268,0.00027397,2]
[423285781,1780026651000,-151.0,0.00027397,2]
[423285811,1780026651000,-1298.758075,0.00027397,2]
[423285787,1780026651000,-1154.137718,0.00027397,2]
[423285784,1780026651000,-151.0,0.00027397,2]
[423285766,1780026651000,-224.76907207,0.00027397,2]
[423285758,1780026651000,-500.0,0.00027397,2]
[423285760,1780026651000,-500.0,0.00027397,2]
[423285765,1780026651000,-2270.93149805,0.00027397,2]
[423285762,1780026651000,-150.0,0.00027397,2]
[423285763,1780026651000,-189.61897912,0.00027397,30]
[423285761,1780026651000,-441.47620498,0.00027397,2]
[423285759,1780026651000,-500.0,0.00027397,2]
[423285764,1780026651000,-388.41218493,0.00027397,2]
[423285769,1780026651000,-315.49308412,0.00027397,7]
[423285768,1780026651000,-1115.48,0.00027397,15]
[423285773,1780026651000,-289.12844,0.00027397,2]
[423285755,1780026651000,-500.0,0.00027397,2]
[423285770,1780026651000,-1000.0,0.00027397,20]
[423285772,1780026651000,-289.12844,0.00027397,2]
[423285783,1780026651000,-151.0,0.00027397,2]
[423285792,1780026651000,-151.0,0.00027397,2]
[423285775,1780026651000,-289.12844,0.00027397,2]
[423285777,1780026651000,-151.0,0.00027397,2]
[423285786,1780026651000,-151.0,0.00027397,2]
[423285776,1780026651000,-959.03,0.00027397,2]
[423285780,1780026651000,-151.0,0.00027397,2]
[423285778,1780026651000,-151.0,0.00027397,2]
[423285782,1780026651000,-151.0,0.00027397,2]
[423285779,1780026651000,-151.0,0.00027397,2]
[423285774,1780026651000,-289.12844,0.00027397,2]
[423285771,1780026651000,-300.0,0.00027397,2]
[423285844,1780026652000,-516.26,0.00027518,7]
[423285850,1780026652000,-1125.41683972,0.00027518,5]
[423285842,1780026652000,-1178.47,0.00027518,7]
[423285847,1780026652000,-1118.95765964,0.00027518,5]
[423285845,1780026652000,-1115.22223299,0.00027518,5]
[423285848,1780026652000,-1022.73402701,0.00027518,5]
[423285849,1780026652000,-1139.57141667,0.00027518,5]
[423285851,1780026652000,-1049.80953662,0.00027518,5]
[423285853,1780026652000,-1025.92694853,0.00027518,5]
[423285852,1780026652000,-1035.30337662,0.00027518,5]
[423285846,1780026652000,-1122.16779134,0.00027518,5]
[423285855,1780026652000,-1031.08085066,0.00027518,5]
[423285857,1780026652000,-1043.05286346,0.00027518,5]
[423285856,1780026652000,-1093.79185208,0.00027518,5]
[423285858,1780026652000,-1093.97585347,0.00027518,5]
[423285859,1780026652000,-1024.97445565,0.00027518,5]
[423285871,1780026652000,-1041.98059383,0.00027518,5]
[423285861,1780026652000,-1075.48285819,0.00027518,5]
[423285864,1780026652000,-1065.72985616,0.00027518,5]
[423285860,1780026652000,-1103.75700745,0.00027518,5]
[423285865,1780026652000,-1139.12604129,0.00027518,5]
[423285863,1780026652000,-1057.87732935,0.00027518,5]
[423285843,1780026652000,-1151.65,0.00027518,7]
[423285854,1780026652000,-1018.48884261,0.00027518,5]
[423285841,1780026652000,-1112.43,0.00027518,7]
[423285825,1780026652000,-2332.95,0.000274,14]
[423285839,1780026652000,-165.0,0.000275,30]
[423285862,1780026652000,-1038.19516015,0.00027518,5]
[423285815,1780026652000,-1348.007108,0.00027397,2]
[423285816,1780026652000,-1348.007108,0.00027397,2]
[423285817,1780026652000,-1348.007108,0.00027397,2]
[423285824,1780026652000,-3699.58,0.000274,7]
[423285822,1780026652000,-500.0,0.00027398,7]
[423285821,1780026652000,-19402.35,0.00027397,10]
[423285826,1780026652000,-500.0,0.000274,2]
[423285823,1780026652000,-6580.74,0.000274,7]
[423285820,1780026652000,-1348.007108,0.00027397,2]
[423285818,1780026652000,-1348.007108,0.00027397,2]
[423285840,1780026652000,-4840.0,0.000275,7]
[423285819,1780026652000,-1348.007108,0.00027397,2]
[423285834,1780026652000,-500.0,0.000274,2]
[423285827,1780026652000,-602.92,0.000274,2]
[423285830,1780026652000,-500.0,0.000274,2]
[423285838,1780026652000,-165.0,0.000275,30]
[423285829,1780026652000,-657.61,0.000274,2]
[423285828,1780026652000,-403.68,0.000274,2]
[423285835,1780026652000,-597.96,0.000274,2]
[423285832,1780026652000,-500.0,0.000274,2]
[423285833,1780026652000,-500.0,0.000274,2]
[423285836,1780026652000,-526.42,0.0002744,7]
[423285837,1780026652000,-514.44,0.0002744,7]
[423285831,1780026652000,-500.0,0.000274,2]
[423285867,1780026652000,-1059.58186689,0.00027518,5]
[423285895,1780026652000,-641.77,0.0002758,7]
[423285868,1780026652000,-1116.16866165,0.00027518,5]
[423285900,1780026652000,-642.43,0.00027611,30]
[423285896,1780026652000,-642.43,0.0002758,7]
[423285901,1780026652000,-641.77,0.00027641,2]
[423285903,1780026652000,-1200.0,0.00027656,30]
[423285897,1780026652000,-152.0,0.00027602,16]
[423285899,1780026652000,-641.77,0.00027611,30]
[423285904,1780026652000,-300.0,0.00027656,30]
[423285906,1780026652000,-568.53506614,0.00027669,2]
[423285907,1780026652000,-536.338243,0.00027671,30]
[423285909,1780026652000,-642.43,0.00027672,7]
[423285912,1780026652000,-152.23131078,0.0002769,7]
[423285902,1780026652000,-642.43,0.00027641,2]
[423285905,1780026652000,-1000.0,0.00027659,7]
[423285910,1780026652000,-2189.94,0.00027687,30]
[423285908,1780026652000,-641.77,0.00027672,7]
[423285913,1780026652000,-154.66745118,0.0002769,7]
[423285914,1780026652000,-151.65429767,0.0002769,7]
[423285918,1780026652000,-150.0,0.0002769,7]
[423285915,1780026652000,-150.0,0.0002769,7]
[423285922,1780026652000,-194.674,0.000277,17]
[423285920,1780026652000,-2939.18,0.000277,7]
[423285919,1780026652000,-150.0,0.0002769,7]
[423285916,1780026652000,-151.5224192,0.0002769,7]
[423285866,1780026652000,-1004.45917365,0.00027518,5]
[423285911,1780026652000,-424.86,0.00027687,30]
[423285917,1780026652000,-150.0,0.0002769,7]
[423285921,1780026652000,-2165.93281645,0.000277,2]
[423285894,1780026652000,-200.0,0.00027553,2]
[423285898,1780026652000,-1000.0,0.00027609,7]
[423285869,1780026652000,-1098.91312612,0.00027518,5]
[423285870,1780026652000,-1043.73044099,0.00027518,5]
[423285872,1780026652000,-1064.82814479,0.00027518,5]
[423285873,1780026652000,-1128.81186392,0.00027518,5]
[423285881,1780026652000,-1026.94134292,0.00027518,5]
[423285874,1780026652000,-1068.46276443,0.00027518,5]
[423285879,1780026652000,-1042.43797832,0.00027518,5]
[423285875,1780026652000,-1061.050361,0.00027518,5]
[423285877,1780026652000,-1052.73934459,0.00027518,5]
[423285878,1780026652000,-1147.65222729,0.00027518,5]
[423285882,1780026652000,-1136.18960031,0.00027518,5]
[423285876,1780026652000,-1080.85533229,0.00027518,5]
[423285884,1780026652000,-1072.19854398,0.00027518,5]
[423285880,1780026652000,-1039.24203266,0.00027518,5]
[423285889,1780026652000,-3872.03,0.0002755,30]
[423285891,1780026652000,-4017.44,0.0002755,30]
[423285890,1780026652000,-642.43,0.0002755,2]
[423285892,1780026652000,-3773.83,0.0002755,30]
[423285893,1780026652000,-3860.42,0.0002755,30]
[423285888,1780026652000,-641.77,0.0002755,2]
[423285886,1780026652000,-150.0,0.00027521,2]
[423285885,1780026652000,-1493.55506615,0.00027518,5]
[423285883,1780026652000,-1002.4043636,0.00027518,5]
[423285887,1780026652000,-3362.08,0.0002755,30]
[423285946,1780026653000,-641.77,0.00027763,7]
[423285945,1780026653000,-642.43,0.00027733,2]
[423285942,1780026653000,-150.0,0.00027727,2]
[423285949,1780026653000,-641.77,0.00027794,30]
[423285959,1780026653000,-3362.08,0.00027872,2]
[423285948,1780026653000,-1000.0,0.00027778,7]
[423285951,1780026653000,-2332.95,0.000278,14]
[423285950,1780026653000,-642.43,0.00027794,30]
[423285953,1780026653000,-642.43,0.00027824,2]
[423285958,1780026653000,-1000.0,0.00027859,7]
[423285955,1780026653000,-641.77,0.00027855,7]
[423285952,1780026653000,-641.77,0.00027824,2]
[423285954,1780026653000,-1004.67,0.00027853,7]
[423285957,1780026653000,-948.0,0.00027856,4]
[423285961,1780026653000,-4017.44,0.00027872,2]
[423285960,1780026653000,-3872.03,0.00027872,2]
[423285939,1780026653000,-299.18552294,0.00027727,2]
[423285962,1780026653000,-3773.83,0.00027872,2]
[423285956,1780026653000,-642.43,0.00027855,7]